fUST/lending_fUST_20250609
["ID","MTS","AMOUNT","RATE_DAILY","PERIOD"]
[365119496,1749474653555,-151.0,0.00023287,7]
[365119497,1749474653564,-440.0,0.00023287,4]
[365119498,1749474653574,-440.0,0.00023287,4]
[365119499,1749474653583,-440.0,0.00023287,4]
[365119500,1749474653593,-1168.5,0.00023287,4]
[365119501,1749474653602,-541.39,0.00023287,4]
[365119502,1749474653612,-440.0,0.00023287,4]
[365119503,1749474653707,-787.55,0.00023287,4]
[365119504,1749474653717,-2032.57,0.00023287,4]
[365119505,1749474653726,-440.0,0.00023287,4]
[365119506,1749474653736,-440.0,0.00023287,4]
[365119507,1749474653745,-380.0,0.00023287,4]
[365119508,1749474653754,-947.64,0.00023287,4]
[365119509,1749474653764,-4353.31,0.00023287,4]
[365119510,1749474653773,-440.0,0.00023287,4]
[365119511,1749474653782,-1150.35,0.00023287,4]
[365119512,1749474653793,-9431.6,0.0002329,10]
[365119513,1749474653803,-15083.64,0.0002329,10]
[365119514,1749474653814,-3000.0,0.000233,2]
[365119515,1749474653824,-3000.0,0.000233,2]
[365119516,1749474653834,-3000.0,0.0002331,2]
[365119517,1749474653844,-3000.0,0.0002331,2]
[365119518,1749474653854,-3000.0,0.0002332,2]
[365119519,1749474653865,-3000.0,0.0002332,2]
[365119520,1749474653874,-250.0,0.00023321,2]
[365119521,1749474653884,-3663.864902,0.0002333,2]
[365119522,1749474653894,-3000.0,0.0002333,2]
[365119523,1749474653904,-151.0,0.0002333,7]
[365119524,1749474653914,-151.0,0.0002333,7]
[365119525,1749474653923,-197.457716,0.0002333,7]
[365119526,1749474653935,-3000.0,0.0002334,2]
[365119527,1749474653944,-1826.05776513,0.00023348,9]
[365119528,1749474653955,-3000.0,0.0002335,2]
[365119529,1749474653964,-1764.18635296,0.0002335,2]
[365119530,1749474653974,-3000.0,0.0002336,2]
[365119531,1749474653985,-3000.0,0.0002337,2]
[365119532,1749474654001,-3000.0,0.0002338,2]
[365119533,1749474654016,-3000.0,0.0002339,2]
[365119534,1749474654026,-963.0,0.0002339,2]
[365119535,1749474654038,-653.0,0.0002339,2]
[365119536,1749474654049,-2160.0,0.0002339,2]
[365119537,1749474654060,-3000.0,0.000234,2]
[365119538,1749474654070,-3000.0,0.0002341,2]
[365119539,1749474654081,-500.0,0.00023411,2]
[365119540,1749474654091,-500.0,0.00023411,2]
[365119541,1749474654102,-509.09618622,0.00023417,2]
[365119542,1749474654112,-1112.12485331,0.00023417,2]
[365119543,1749474654122,-1000.0,0.00023417,2]
[365119544,1749474654132,-3000.0,0.0002342,2]
[365119545,1749474654142,-158.44491473,0.00023425,2]
[365119546,1749474654153,-158.44491473,0.00023425,2]
[365119547,1749474654163,-3000.0,0.0002343,2]
[365119548,1749474654174,-3000.0,0.0002344,2]
[365119549,1749474654184,-2750.0,0.00023449,7]
[365119550,1749474654194,-3000.0,0.0002345,2]
[365119551,1749474654204,-1826.05776513,0.00023452,9]
[365119552,1749474654214,-3000.0,0.0002346,2]
[365119553,1749474654225,-3000.0,0.0002347,2]
[365119554,1749474654236,-3000.0,0.0002348,2]
[365119555,1749474654246,-182.63514545,0.0002348,2]
[365119556,1749474654256,-3000.0,0.0002349,2]
[365119557,1749474654267,-3000.0,0.000235,2]
[365119558,1749474654277,-1764.18635296,0.00023501,2]
[365119559,1749474654287,-159.96257319,0.00023507,2]
[365119560,1749474654297,-3000.0,0.0002351,2]
[365119561,1749474654308,-776.142129,0.0002352,3]
[365119562,1749474654318,-3000.0,0.0002352,2]
[365119563,1749474654328,-3000.0,0.0002353,2]
[365119564,1749474654338,-3000.0,0.0002354,2]
[365119565,1749474654348,-3000.0,0.0002355,2]
[365119566,1749474654358,-1826.05776513,0.00023555,9]
[365119567,1749474654368,-5000.0,0.00023559,2]
[365119568,1749474654379,-3000.0,0.0002356,2]
[365119569,1749474654389,-267.31550322,0.00023561,4]
[365119570,1749474654399,-440.0,0.00023561,4]
[365119571,1749474654410,-440.0,0.00023561,4]
[365119572,1749474654420,-447.19774906,0.00023561,4]
[365119573,1749474654430,-440.0,0.00023561,4]
[365119574,1749474654441,-440.0,0.00023561,4]
[365119575,1749474654451,-440.0,0.00023561,4]
[365119576,1749474654460,-267.77189891,0.00023561,4]
[365119577,1749474654470,-440.0,0.00023561,4]
[365119578,1749474654480,-440.0,0.00023561,4]
[365119579,1749474654490,-343.870631,0.00023561,4]
[365119580,1749474654499,-440.0,0.00023561,4]
[365119581,1749474654510,-440.0,0.00023561,4]
[365119582,1749474654520,-440.0,0.00023561,4]
[365119583,1749474654530,-440.0,0.00023561,4]
[365119584,1749474654540,-440.0,0.00023561,2]
[365119585,1749474654550,-410.0,0.00023561,4]
[365119586,1749474654560,-440.0,0.00023561,4]
[365119587,1749474654569,-440.0,0.00023561,4]
[365119588,1749474654579,-440.0,0.00023561,4]
[365119589,1749474654589,-151.0,0.00023561,7]
[365119590,1749474654599,-440.0,0.00023561,4]
[365119591,1749474654608,-151.0,0.00023561,7]
[365119592,1749474654618,-440.0,0.00023561,4]
[365119593,1749474654628,-521.26777517,0.00023561,4]
[365119594,1749474654638,-440.0,0.00023561,4]
[365119595,1749474654647,-440.0,0.00023561,4]
[365119596,1749474654661,-158.193391,0.00023561,7]
[365119597,1749474654670,-8516.89,0.00023561,4]
[365119598,1749474654680,-158.193391,0.00023561,7]
[365119599,1749474654690,-532.02,0.00023561,4]
[365119600,1749474654700,-653.57,0.00023561,4]
[365119601,1749474654710,-3787.32,0.00023561,4]
[365119602,1749474654719,-440.0,0.00023561,4]
[365119603,1749474654729,-440.0,0.00023561,4]
[365119604,1749474654738,-1938.33,0.00023561,4]
[365119605,1749474654747,-547.08,0.00023561,4]
[365119606,1749474654755,-440.0,0.00023561,4]
[365119607,1749474654765,-440.0,0.00023561,4]
[365119608,1749474654774,-440.0,0.00023561,4]
[365119609,1749474654783,-695.15,0.00023561,4]
[365119610,1749474654792,-4898.39,0.00023561,4]
[365119611,1749474654802,-440.0,0.00023561,4]
[365119612,1749474654811,-440.0,0.00023561,4]
[365119613,1749474654820,-410.0,0.00023561,4]
[365119614,1749474654829,-663.04,0.00023561,4]
[365119615,1749474654839,-440.0,0.00023561,4]
[365119616,1749474654847,-440.0,0.00023561,4]
[365119617,1749474654857,-440.0,0.00023561,4]
[365119618,1749474654865,-440.0,0.00023561,4]
[365119619,1749474654874,-362.7260579,0.00023561,4]
[365119620,1749474654881,-440.0,0.00023561,4]
[365119621,1749474654889,-440.0,0.00023561,4]
[365119622,1749474654897,-686.85,0.00023561,4]
[365119623,1749474654905,-1865.17,0.00023561,4]
[365119624,1749474654913,-440.0,0.00023561,4]
[365119625,1749474654921,-440.0,0.00023561,4]
[365119626,1749474654929,-995.36,0.00023561,4]
[365119627,1749474654937,-4114.26,0.00023561,4]
[365119628,1749474654945,-4986.72,0.00023561,4]
[365119629,1749474654953,-1090.86,0.00023561,4]
[365119630,1749474654961,-2745.12,0.00023561,4]
[365119631,1749474654968,-440.0,0.00023561,4]
[365119632,1749474654976,-588.56,0.00023561,4]
[365119633,1749474654984,-979.69,0.00023561,4]
[365119634,1749474654992,-440.0,0.00023561,4]
[365119635,1749474655000,-472.24,0.00023561,4]
[365119636,1749474655009,-440.0,0.00023561,4]
[365119637,1749474655019,-220.0,0.00023561,4]
[365119638,1749474655029,-415.8869076,0.00023561,4]
[365119639,1749474655038,-440.0,0.00023561,4]
[365119640,1749474655048,-440.0,0.00023561,4]
[365119641,1749474655058,-1254.23,0.00023561,4]
[365119642,1749474655068,-388.50620666,0.00023561,4]
[365119643,1749474655077,-440.0,0.00023561,4]
[365119644,1749474655174,-1920.52,0.00023561,4]
[365119645,1749474655184,-1636.47,0.00023561,4]
[365119646,1749474655195,-440.0,0.00023561,4]
[365119647,1749474655206,-627.51,0.00023561,4]
[365119648,1749474655216,-227.66782743,0.00023561,4]
[365119649,1749474655227,-440.0,0.00023561,4]
[365119650,1749474655238,-736.45,0.00023561,4]
[365119651,1749474655247,-440.0,0.00023561,4]
[365119652,1749474655257,-440.0,0.00023561,4]
[365119653,1749474655267,-440.0,0.00023561,4]
[365119654,1749474655276,-440.0,0.00023561,4]
[365119655,1749474655286,-607.69,0.00023561,4]
[365119656,1749474655295,-440.0,0.00023561,4]
[365119657,1749474655305,-847.9,0.00023561,4]
[365119658,1749474655315,-440.0,0.00023561,4]
[365119659,1749474655325,-1920.28,0.00023561,4]
[365119660,1749474655334,-440.0,0.00023561,4]
[365119661,1749474655345,-330.0,0.00023561,4]
[365119662,1749474655354,-440.0,0.00023561,4]
[365119663,1749474655363,-2918.21,0.00023561,4]
[365119664,1749474655372,-440.0,0.00023561,4]
[365119665,1749474655382,-440.0,0.00023561,4]
[365119666,1749474655391,-440.0,0.00023561,4]
[365119667,1749474655401,-440.0,0.00023561,4]
[365119668,1749474655411,-440.0,0.00023561,4]
[365119669,1749474655420,-440.0,0.00023561,4]
[365119670,1749474655429,-151.0,0.00023561,7]
[365119671,1749474655439,-440.0,0.00023561,4]
[365119672,1749474655448,-440.0,0.00023561,4]
[365119673,1749474655457,-1168.5,0.00023561,4]
[365119674,1749474655467,-541.39,0.00023561,4]
[365119675,1749474655476,-440.0,0.00023561,4]
[365119676,1749474655486,-787.55,0.00023561,4]
[365119677,1749474655496,-2032.57,0.00023561,4]
[365119678,1749474655506,-380.0,0.00023561,4]
[365119679,1749474655515,-440.0,0.00023561,4]
[365119680,1749474655524,-947.64,0.00023561,4]
[365119681,1749474655534,-4353.31,0.00023561,4]
[365119682,1749474655544,-440.0,0.00023561,4]
[365119683,1749474655554,-1150.35,0.00023561,4]
[365119684,1749474655564,-3000.0,0.0002357,2]
[365119685,1749474655574,-3000.0,0.0002358,2]
[365119686,1749474655584,-3000.0,0.0002359,2]
[365119687,1749474655594,-3000.0,0.000236,2]
[365119688,1749474655603,-151.0,0.000236,9]
[365119689,1749474655613,-3000.0,0.0002361,2]
[365119690,1749474655623,-3000.0,0.0002362,2]
[365119691,1749474655632,-1000.0,0.00023621,2]
[365119692,1749474655642,-1004.22249463,0.00023621,2]
[365119693,1749474655651,-1000.0,0.00023621,2]
[365119694,1749474655666,-1000.0,0.00023621,2]
[365119695,1749474655676,-1200.0,0.00023621,2]
[365119696,1749474655686,-3000.0,0.0002363,2]
[365119697,1749474655695,-3000.0,0.0002364,2]
[365119698,1749474655706,-3000.0,0.0002365,2]
[365119699,1749474655716,-1764.18635296,0.00023651,2]
[365119700,1749474655725,-1826.05776513,0.00023659,9]
[365119701,1749474655736,-3000.0,0.0002366,2]
[365119702,1749474655746,-3000.0,0.0002367,2]
[365119703,1749474655756,-3000.0,0.0002368,2]
[365119704,1749474655765,-2750.0,0.00023684,7]
[365119705,1749474655775,-3000.0,0.0002369,2]
[365119706,1749474655785,-263.2,0.0002369,7]
[365119707,1749474655794,-3000.0,0.000237,2]
[365119708,1749474655803,-3000.0,0.0002371,2]
[365119709,1749474655813,-3000.0,0.0002372,2]
[365119710,1749474655822,-3000.0,0.0002373,2]
[365119711,1749474655832,-4074.215066,0.0002374,2]
[365119712,1749474655841,-500.0,0.00023758,2]
[365119713,1749474655851,-1826.05776513,0.00023762,9]
[365119714,1749474655861,-151.0,0.00023799,7]
[365119715,1749474655870,-151.0,0.00023799,7]
[365119716,1749474655879,-151.0,0.00023799,7]
[365119717,1749474655889,-151.0,0.00023799,7]
[365119718,1749474655899,-575.4,0.000238,7]
[365119719,1749474655908,-151.0,0.000238,9]
[365119720,1749474655918,-1019.0,0.000238,2]
[365119721,1749474655927,-1019.0,0.000238,2]
[365119722,1749474655937,-1019.0,0.000238,2]
[365119723,1749474655946,-1019.0,0.000238,2]
[365119724,1749474655957,-1019.0,0.000238,2]
[365119725,1749474655967,-1019.0,0.000238,2]
[365119726,1749474655976,-1019.0,0.000238,2]
[365119727,1749474655986,-1019.0,0.000238,2]
[365119728,1749474655996,-1019.0,0.000238,2]
[365119729,1749474656006,-1019.0,0.000238,2]
[365119730,1749474656016,-1764.18635296,0.00023801,2]
[365119731,1749474656026,-2000.0,0.00023816,2]
[365119732,1749474656036,-2000.0,0.00023816,2]
[365119733,1749474656046,-2000.0,0.00023816,2]
[365119734,1749474656056,-440.0,0.00023835,4]
[365119735,1749474656066,-440.0,0.00023835,4]
[365119736,1749474656076,-440.0,0.00023835,4]
[365119737,1749474656085,-440.0,0.00023835,4]
[365119738,1749474656095,-440.0,0.00023835,4]
[365119739,1749474656105,-440.0,0.00023835,4]
[365119740,1749474656115,-430.0,0.00023835,4]
[365119741,1749474656125,-440.0,0.00023835,4]
[365119742,1749474656135,-440.0,0.00023835,2]
[365119743,1749474656145,-440.0,0.00023835,4]
[365119744,1749474656155,-440.0,0.00023835,4]
[365119745,1749474656165,-440.0,0.00023835,4]
[365119746,1749474656176,-440.0,0.00023835,4]
[365119747,1749474656186,-410.0,0.00023835,4]
[365119748,1749474656195,-410.0,0.00023835,4]
[365119749,1749474656206,-440.0,0.00023835,4]
[365119750,1749474656217,-8516.89,0.00023835,4]
[365119751,1749474656227,-532.02,0.00023835,4]
[365119752,1749474656237,-653.57,0.00023835,4]
[365119753,1749474656247,-3787.32,0.00023835,4]
[365119754,1749474656257,-440.0,0.00023835,4]
[365119755,1749474656267,-440.0,0.00023835,4]
[365119756,1749474656277,-1938.33,0.00023835,4]
[365119757,1749474656287,-547.08,0.00023835,4]
[365119758,1749474656297,-440.0,0.00023835,4]
[365119759,1749474656307,-440.0,0.00023835,4]
[365119760,1749474656317,-576.54201458,0.00023835,4]
[365119761,1749474656327,-695.15,0.00023835,4]
[365119762,1749474656336,-4898.39,0.00023835,4]
[365119763,1749474656346,-440.0,0.00023835,4]
[365119764,1749474656356,-440.0,0.00023835,4]
[365119765,1749474656366,-663.04,0.00023835,4]
[365119766,1749474656376,-440.0,0.00023835,4]
[365119767,1749474656386,-440.0,0.00023835,4]
[365119768,1749474656395,-440.0,0.00023835,4]
[365119769,1749474656405,-440.0,0.00023835,4]
[365119770,1749474656415,-440.0,0.00023835,4]
[365119771,1749474656425,-440.0,0.00023835,4]
[365119772,1749474656434,-686.85,0.00023835,4]
[365119773,1749474656516,-1865.17,0.00023835,4]
[365119774,1749474656527,-440.0,0.00023835,4]
[365119775,1749474656537,-440.0,0.00023835,4]
[365119776,1749474656547,-995.36,0.00023835,4]
[365119777,1749474656557,-4114.26,0.00023835,4]
[365119778,1749474656568,-4986.72,0.00023835,4]
[365119779,1749474656578,-2745.12,0.00023835,4]
[365119780,1749474656587,-1090.86,0.00023835,4]
[365119781,1749474656597,-440.0,0.00023835,4]
[365119782,1749474656607,-588.56,0.00023835,4]
[365119783,1749474656620,-979.69,0.00023835,4]
[365119784,1749474656630,-440.0,0.00023835,4]
[365119785,1749474656640,-472.24,0.00023835,4]
[365119786,1749474656649,-440.0,0.00023835,4]
[365119787,1749474656662,-440.0,0.00023835,4]
[365119788,1749474656672,-440.0,0.00023835,4]
[365119789,1749474656682,-1254.23,0.00023835,4]
[365119790,1749474656692,-440.0,0.00023835,4]
[365119791,1749474656703,-1920.52,0.00023835,4]
[365119792,1749474656712,-1636.47,0.00023835,4]
[365119793,1749474656722,-440.0,0.00023835,4]
[365119794,1749474656734,-627.51,0.00023835,4]
[365119795,1749474656744,-440.0,0.00023835,4]
[365119796,1749474656754,-736.45,0.00023835,4]
[365119797,1749474656764,-440.0,0.00023835,4]
[365119798,1749474656774,-440.0,0.00023835,4]
[365119799,1749474656784,-440.0,0.00023835,4]
[365119800,1749474656794,-440.0,0.00023835,4]
[365119801,1749474656804,-607.69,0.00023835,4]
[365119802,1749474656814,-440.0,0.00023835,4]
[365119803,1749474656824,-847.9,0.00023835,4]
[365119804,1749474656834,-440.0,0.00023835,4]
[365119805,1749474656844,-440.0,0.00023835,4]
[365119806,1749474656854,-1920.28,0.00023835,4]
[365119807,1749474656863,-440.0,0.00023835,4]
[365119808,1749474656873,-2918.21,0.00023835,4]
[365119809,1749474656883,-440.0,0.00023835,4]
[365119810,1749474656892,-440.0,0.00023835,4]
[365119811,1749474656902,-440.0,0.00023835,4]
[365119812,1749474656911,-410.0,0.00023835,4]
[365119813,1749474656921,-440.0,0.00023835,4]
[365119814,1749474656931,-440.0,0.00023835,4]
[365119815,1749474656941,-440.0,0.00023835,4]
[365119816,1749474656951,-440.0,0.00023835,4]
[365119817,1749474656962,-1168.5,0.00023835,4]
[365119818,1749474656972,-541.39,0.00023835,4]
[365119819,1749474656982,-440.0,0.00023835,4]
[365119820,1749474656993,-787.55,0.00023835,4]
[365119821,1749474657002,-2032.57,0.00023835,4]
[365119822,1749474657012,-440.0,0.00023835,4]
[365119823,1749474657022,-947.64,0.00023835,4]
[365119824,1749474657032,-4353.31,0.00023835,4]
[365119825,1749474657041,-440.0,0.00023835,4]
[365119826,1749474657051,-1826.05776513,0.00023866,10]
[365119827,1749474657060,-350.24979453,0.00023868,2]
[365119828,1749474657070,-4622.86,0.00023905,2]
[365119829,1749474657080,-2750.24032257,0.00023918,7]
[365119830,1749474657089,-1764.18635296,0.00023952,2]
[365119831,1749474657099,-1500.0,0.00023965,2]
[365119832,1749474657108,-1826.05776513,0.00023969,10]
[365119833,1749474657118,-28267.6897586,0.00023972,2]
[365119834,1749474657127,-151.0,0.00023972,7]
[365119835,1749474657136,-151.0,0.00023972,7]
[365119836,1749474657146,-158.193391,0.00023972,7]
[365119837,1749474657155,-158.193391,0.00023972,7]
[365119838,1749474657164,-160.10933059,0.00023998,2]
[365119839,1749474657175,-280.25024459,0.00023998,2]
[365119840,1749474657184,-14633.39155477,0.00023999,15]
[365119841,1749474657918,-327.2,0.00020898,2]
[365119842,1749474658398,-172.8,0.00020898,2]
[365119843,1749474658409,-500.0,0.00020898,2]
[365119844,1749474658419,-500.0,0.00020898,2]
[365119845,1749474658429,-500.0,0.00020898,2]
[365119846,1749474658439,-500.0,0.00020898,2]
[365119847,1749474658449,-500.0,0.00020898,2]
[365119848,1749474658458,-500.0,0.00020898,2]
[365119849,1749474658468,-500.0,0.00020898,2]
[365119850,1749474658478,-638.68378178,0.00020898,2]
[365119851,1749474658488,-500.0,0.00020898,2]
[365119852,1749474658498,-500.0,0.00020898,2]
[365119853,1749474658507,-500.0,0.00020898,2]
[365119854,1749474658517,-500.0,0.00020898,2]
[365119855,1749474658527,-500.0,0.00020898,2]
[365119856,1749474658537,-500.0,0.00020898,2]
[365119857,1749474658547,-500.0,0.00020898,2]
[365119858,1749474658557,-500.0,0.00020898,2]
[365119859,1749474658567,-500.0,0.00020898,2]
[365119860,1749474658577,-500.0,0.00020898,2]
[365119861,1749474658587,-500.0,0.00020898,2]
[365119862,1749474658597,-401.13209348,0.00020898,2]
[365119863,1749474658607,-500.0,0.00020898,2]
[365119864,1749474658616,-500.0,0.00020898,2]
[365119865,1749474658626,-500.0,0.00020898,2]
[365119866,1749474658635,-500.0,0.00020898,2]
[365119867,1749474658644,-500.0,0.00020898,2]
[365119868,1749474658654,-500.0,0.00020898,2]
[365119869,1749474658667,-500.0,0.00020898,2]
[365119870,1749474658677,-500.0,0.00020898,2]
[365119871,1749474658686,-500.0,0.00020898,2]
[365119872,1749474658696,-500.0,0.00020898,2]
[365119873,1749474658771,-500.0,0.00020898,2]
[365119874,1749474658781,-500.0,0.00020898,2]
[365119875,1749474658791,-500.0,0.00020898,2]
[365119876,1749474658800,-500.0,0.00020898,2]
[365119877,1749474658810,-500.0,0.00020898,2]
[365119878,1749474658820,-500.0,0.00020898,2]
[365119879,1749474658829,-500.0,0.00020898,2]
[365119880,1749474658839,-500.0,0.00020898,2]
[365119881,1749474658849,-500.0,0.00020898,2]
[365119882,1749474658858,-500.0,0.00020898,2]
[365119883,1749474658868,-500.0,0.00020898,2]
[365119884,1749474658877,-500.0,0.00020898,2]
[365119885,1749474658888,-500.0,0.00020898,2]
[365119886,1749474658898,-500.0,0.00020898,2]
[365119887,1749474658908,-500.0,0.00020898,2]
[365119888,1749474658918,-500.0,0.00020898,2]
[365119889,1749474658928,-500.0,0.00020898,2]
[365119890,1749474658937,-500.0,0.00020898,2]
[365119891,1749474658947,-500.0,0.00020898,2]
[365119892,1749474658957,-500.0,0.00020898,2]
[365119893,1749474658967,-500.0,0.00020898,2]
[365119894,1749474658976,-341.53037299,0.00020898,2]
[365119895,1749474658986,-500.0,0.00020898,2]
[365119896,1749474658996,-440.0,0.00021917,4]
[365119897,1749474659006,-440.0,0.00021917,4]
[365119898,1749474659016,-440.0,0.00021917,4]
[365119899,1749474659025,-440.0,0.00021917,4]
[365119900,1749474659035,-440.0,0.00021917,4]
[365119901,1749474659045,-440.0,0.00021917,4]
[365119902,1749474659055,-440.0,0.00021917,4]
[365119903,1749474659065,-440.0,0.00022191,4]
[365119904,1749474659074,-440.0,0.00022191,4]
[365119905,1749474659084,-440.0,0.00022191,4]
[365119906,1749474659094,-8901.35561778,0.00022465,2]
[365119907,1749474659107,-17488.31443142,0.00022465,2]
[365119908,1749474659117,-440.0,0.00022465,4]
[365119909,1749474659126,-418.34286965,0.00022739,4]
[365119911,1749474679503,499.999999,0.0002465,120]
[365119915,1749474759146,163.630966,0.00013699,2]
[365119929,1749475252341,454.26601214,0.0002465,120]
[365119940,1749475653067,15417.02894361,0.00024644,120]
[365119946,1749475742474,300.0,0.00017999,2]
[365119958,1749475802627,167.0,0.00017999,2]
[365119959,1749475802865,300.0,0.00017999,2]
[365120019,1749475831843,-559.0,0.00018,2]
[365120021,1749475831852,-440.9,0.00018,2]
[365120023,1749475831864,-859.95,0.00018,2]
[365120025,1749475831875,-1571.1810035,0.00018,2]
[365120027,1749475831887,-12522.0201965,0.00018,2]
[365120029,1749475831896,-564.55,0.00019436,2]
[365120032,1749475831906,-420.0,0.00019639,2]
[365120036,1749475831922,-847.88693928,0.000199,2]
[365120040,1749475831936,-847.88693924,0.00020072,2]
[365120042,1749475831946,-847.88693924,0.00020245,2]
[365120043,1749475831957,-1129.1,0.00020362,2]
[365120044,1749475831966,-847.88693924,0.00020417,3]
[365120046,1749475831976,-1000.0,0.000205,2]
[365120047,1749475831986,-847.88693924,0.0002059,3]
[365120049,1749475831995,-847.88693924,0.00020762,3]
[365120050,1749475832005,-847.88693924,0.00020934,4]
[365120051,1749475832014,-181.523143,0.00020985,2]
[365120052,1749475832024,-847.88693924,0.00021107,4]
[365120053,1749475832033,-847.88693924,0.00021279,5]
[365120054,1749475832046,-852.86372475,0.00021288,2]
[365120055,1749475832059,-840.78627525,0.00021288,2]
[365120056,1749475832069,-1128.13710584,0.00021395,2]
[365120057,1749475832080,-218.0,0.00021428,2]
[365120058,1749475832091,-847.88693924,0.00021452,5]
[365120059,1749475832101,-1000.0,0.000215,3]
[365120060,1749475832110,-847.88693924,0.00021624,5]
[365120061,1749475832122,-1022.25970562,0.00021779,2]
[365120062,1749475832133,-847.88693924,0.00021797,6]
[365120063,1749475832143,-182.63514545,0.00021812,2]
[365120064,1749475832153,-734.23,0.00021898,2]
[365120065,1749475832162,-300.0,0.00021912,2]
[365120066,1749475832172,-500.0,0.00021916,2]
[365120067,1749475832181,-500.0,0.00021916,2]
[365120068,1749475832190,-500.0,0.00021916,2]
[365120069,1749475832199,-500.0,0.00021916,2]
[365120070,1749475832209,-500.0,0.00021916,2]
[365120071,1749475832218,-500.0,0.00021916,2]
[365120072,1749475832228,-500.0,0.00021916,2]
[365120073,1749475832237,-500.0,0.00021916,2]
[365120074,1749475832247,-500.0,0.00021916,2]
[365120075,1749475832257,-241.50662446,0.00021916,2]
[365120076,1749475832267,-238.41227621,0.00021916,2]
[365120077,1749475832277,-300.0,0.00021916,2]
[365120078,1749475832287,-304.20724205,0.00021916,2]
[365120079,1749475832297,-600.0,0.00021916,2]
[365120080,1749475832307,-500.0,0.00021917,4]
[365120081,1749475832317,-450.0,0.00021917,4]
[365120082,1749475832329,-420.26681816,0.00021917,4]
[365120083,1749475832339,-420.0,0.00021917,4]
[365120084,1749475832350,-440.0,0.00021917,4]
[365120085,1749475832360,-420.0,0.00021917,4]
[365120086,1749475832370,-556.04117934,0.00021917,4]
[365120087,1749475832380,-420.0,0.00021917,4]
[365120088,1749475832390,-440.0,0.00021917,4]
[365120089,1749475832400,-440.0,0.00021917,4]
[365120090,1749475832410,-440.0,0.00021917,4]
[365120091,1749475832419,-440.0,0.00021917,4]
[365120092,1749475832429,-440.0,0.00021917,4]
[365120093,1749475832439,-440.0,0.00021917,4]
[365120094,1749475832449,-440.0,0.00021917,4]
[365120095,1749475832459,-440.0,0.00021917,4]
[365120096,1749475832469,-440.0,0.00021917,4]
[365120097,1749475832478,-420.0,0.00021917,4]
[365120098,1749475832489,-447.97659099,0.00021917,4]
[365120099,1749475832499,-440.0,0.00021917,4]
[365120100,1749475832508,-440.0,0.00021917,4]
[365120101,1749475832518,-420.0,0.00021917,4]
[365120102,1749475832528,-440.0,0.00021917,4]
[365120103,1749475832538,-420.0,0.00021917,4]
[365120104,1749475832547,-420.0,0.00021917,4]
[365120105,1749475832557,-420.0,0.00021917,4]
[365120106,1749475832566,-440.0,0.00021917,4]
[365120107,1749475832575,-440.0,0.00021917,4]
[365120108,1749475832585,-498.27877688,0.00021917,4]
[365120109,1749475832595,-440.0,0.00021917,4]
[365120110,1749475832603,-440.0,0.00021917,4]
[365120111,1749475832612,-440.0,0.00021917,4]
[365120112,1749475832621,-201.80508126,0.00021917,4]
[365120113,1749475832634,-238.19491874,0.00021917,4]